[Event "Late-Titled-Tuesday-Blitz-October-03-2023"]
[Site "Chess.com"]
[Date "2023.10.03"]
[Round "8"]
[White "NMZanette"]
[Black "dorpato"]
[Result "1-0"]
[WhiteElo "2307"]
[BlackElo "2052"]
[TimeControl "180+1"]
[EndTime "15:23:30 PDT"]
[Termination "NMZanette won by resignation"]

1. e4 {[%clk 0:03:00.9]} 1... c5 {[%clk 0:02:57.6]} 2. Nc3 {[%clk 0:03:00.4]}
2... g6 {[%clk 0:02:56.8]} 3. f4 {[%clk 0:03:00]} 3... Bg7 {[%clk 0:02:57]} 4.
Nf3 {[%clk 0:03:00.1]} 4... e6 {[%clk 0:02:57.2]} 5. e5 {[%clk 0:02:57.8]} 5...
Nc6 {[%clk 0:02:55.2]} 6. Ne4 {[%clk 0:02:55.4]} 6... Nge7 {[%clk 0:02:48.6]} 7.
Nd6+ {[%clk 0:02:54.9]} 7... Kf8 {[%clk 0:02:49]} 8. Ng5 {[%clk 0:02:55.4]} 8...
Nf5 {[%clk 0:02:46.6]} 9. Ndxf7 {[%clk 0:02:49.1]} 9... Qe7 {[%clk 0:02:46]} 10.
Nxh8 {[%clk 0:02:42.9]} 10... Bxh8 {[%clk 0:02:45.3]} 11. Bd3 {[%clk 0:02:36.6]}
11... h6 {[%clk 0:02:32.8]} 12. Nf3 {[%clk 0:02:35.3]} 12... Ncd4 {[%clk
0:02:28]} 13. Bxf5 {[%clk 0:02:31.8]} 13... Nxf3+ {[%clk 0:02:15.2]} 14. Qxf3
{[%clk 0:02:30.6]} 14... exf5 {[%clk 0:02:14.8]} 15. O-O {[%clk 0:02:30.1]}
15... Rb8 {[%clk 0:02:13.2]} 16. d3 {[%clk 0:02:22.2]} 16... b6 {[%clk
0:01:54.7]} 17. Bd2 {[%clk 0:02:17.4]} 17... Bb7 {[%clk 0:01:53.4]} 18. Qg3
{[%clk 0:02:17.6]} 18... Kg7 {[%clk 0:01:44.9]} 19. e6 {[%clk 0:02:07.2]} 19...
dxe6 {[%clk 0:01:39.2]} 20. Bc3+ {[%clk 0:02:04]} 20... Kh7 {[%clk 0:01:39]} 21.
Bxh8 {[%clk 0:01:55.2]} 21... Rxh8 {[%clk 0:01:39.9]} 22. Rae1 {[%clk
0:01:55.3]} 22... Qf6 {[%clk 0:01:35.4]} 23. Re5 {[%clk 0:01:52.9]} 23... Bd5
{[%clk 0:01:27.1]} 24. c4 {[%clk 0:01:51.9]} 24... Bc6 {[%clk 0:01:26.8]} 25.
Rfe1 {[%clk 0:01:51.7]} 25... Bd7 {[%clk 0:01:26.5]} 26. Qe3 {[%clk 0:01:46.9]}
26... Bc8 {[%clk 0:01:22]} 27. a3 {[%clk 0:01:41.1]} 27... Rd8 {[%clk
0:01:15.1]} 28. b4 {[%clk 0:01:38.9]} 28... cxb4 {[%clk 0:01:06.1]} 29. axb4
{[%clk 0:01:38.3]} 29... Rd6 {[%clk 0:01:02.7]} 30. d4 {[%clk 0:01:31.6]} 30...
Qd8 {[%clk 0:00:58]} 31. d5 {[%clk 0:01:28.5]} 31... b5 {[%clk 0:00:49.2]} 32.
dxe6 {[%clk 0:01:20.7]} 32... bxc4 {[%clk 0:00:43.2]} 33. Qxa7+ {[%clk
0:01:18.7]} 33... Kh8 {[%clk 0:00:40.6]} 34. Qf7 {[%clk 0:01:13.1]} 34... Qb6+
{[%clk 0:00:16]} 35. Kh1 {[%clk 0:01:11.4]} 35... Qxb4 {[%clk 0:00:13.5]} 36. e7
{[%clk 0:01:07.7]} 36... Bd7 {[%clk 0:00:12.1]} 37. e8=Q+ {[%clk 0:01:06.4]} 1-0

[Event "Late-Titled-Tuesday-Blitz-October-03-2023"]
[Site "Chess.com"]
[Date "2023.10.03"]
[Round "8"]
[White "Vaathi_Coming"]
[Black "Ali_rastbod"]
[Result "1-0"]
[WhiteElo "2891"]
[BlackElo "2712"]
[TimeControl "180+1"]
[EndTime "15:23:31 PDT"]
[Termination "Vaathi_Coming won by resignation"]

1. Nf3 {[%clk 0:03:00.9]} 1... d5 {[%clk 0:02:57.6]} 2. e3 {[%clk 0:03:01.2]}
2... Nf6 {[%clk 0:02:56.9]} 3. d4 {[%clk 0:03:01.8]} 3... c5 {[%clk 0:02:55.4]}
4. Be2 {[%clk 0:03:02.1]} 4... cxd4 {[%clk 0:02:51.2]} 5. exd4 {[%clk
0:03:01.5]} 5... Nc6 {[%clk 0:02:51.9]} 6. O-O {[%clk 0:03:02.2]} 6... Bg4
{[%clk 0:02:52.5]} 7. c3 {[%clk 0:03:02.2]} 7... e6 {[%clk 0:02:52]} 8. Bf4
{[%clk 0:03:02.8]} 8... Bd6 {[%clk 0:02:51.5]} 9. Bxd6 {[%clk 0:03:02.5]} 9...
Qxd6 {[%clk 0:02:52.4]} 10. Nbd2 {[%clk 0:03:03]} 10... O-O {[%clk 0:02:52.6]}
11. Re1 {[%clk 0:03:03.7]} 11... Rab8 {[%clk 0:02:52.5]} 12. Ne5 {[%clk
0:03:02.3]} 12... Bxe2 {[%clk 0:02:44.5]} 13. Qxe2 {[%clk 0:03:03.2]} 13... Qc7
{[%clk 0:02:41.9]} 14. Nd3 {[%clk 0:02:59.8]} 14... Rfe8 {[%clk 0:02:36.8]} 15.
g3 {[%clk 0:02:53.1]} 15... h6 {[%clk 0:02:31.5]} 16. Kg2 {[%clk 0:02:49.9]}
16... Ne7 {[%clk 0:02:21.8]} 17. Ne5 {[%clk 0:02:42.8]} 17... Nf5 {[%clk
0:02:20.3]} 18. a4 {[%clk 0:02:39.5]} 18... Nd6 {[%clk 0:02:16.8]} 19. a5 {[%clk
0:02:34.3]} 19... b6 {[%clk 0:02:15.7]} 20. axb6 {[%clk 0:02:32.9]} 20... Rxb6
{[%clk 0:02:15.7]} 21. Ra2 {[%clk 0:02:29.4]} 21... Reb8 {[%clk 0:02:14.6]} 22.
Ndf3 {[%clk 0:02:28]} 22... Nfe4 {[%clk 0:02:10.9]} 23. Rea1 {[%clk 0:02:27.9]}
23... R8b7 {[%clk 0:02:08.1]} 24. Nd3 {[%clk 0:02:25.4]} 24... Nc4 {[%clk
0:02:05.7]} 25. Nfe5 {[%clk 0:02:25.1]} 25... Nxe5 {[%clk 0:01:54.2]} 26. Nxe5
{[%clk 0:02:26]} 26... Nd6 {[%clk 0:01:50.5]} 27. h4 {[%clk 0:02:13.7]} 27...
Qb8 {[%clk 0:01:36.7]} 28. Nd3 {[%clk 0:02:08.4]} 28... Ne4 {[%clk 0:01:33.9]}
29. Qe3 {[%clk 0:01:59.9]} 29... h5 {[%clk 0:01:26.3]} 30. Qf4 {[%clk
0:01:34.3]} 30... Qxf4 {[%clk 0:01:24.7]} 31. gxf4 {[%clk 0:01:35.2]} 31... Nd6
{[%clk 0:00:34.1]} 32. Rxa7 {[%clk 0:01:33.5]} 32... Rxa7 {[%clk 0:00:33]} 33.
Rxa7 {[%clk 0:01:34.4]} 33... Nc4 {[%clk 0:00:31.5]} 34. b4 {[%clk 0:01:33.5]}
34... Nd6 {[%clk 0:00:26.5]} 35. Ne5 {[%clk 0:01:33.3]} 35... f6 {[%clk
0:00:20.5]} 36. Nd7 {[%clk 0:01:25.7]} 36... Rc6 {[%clk 0:00:18.7]} 37. Nc5
{[%clk 0:01:26.1]} 37... Nb5 {[%clk 0:00:18.3]} 38. Rb7 {[%clk 0:01:19.1]} 38...
Nxc3 {[%clk 0:00:17.6]} 39. b5 {[%clk 0:01:19.8]} 39... Nxb5 {[%clk 0:00:11.8]}
40. Rxb5 {[%clk 0:01:19.5]} 40... e5 {[%clk 0:00:12.7]} 41. fxe5 {[%clk
0:01:19.3]} 41... fxe5 {[%clk 0:00:13.6]} 42. dxe5 {[%clk 0:01:20.2]} 1-0

[Event "Late-Titled-Tuesday-Blitz-October-03-2023"]
[Site "Chess.com"]
[Date "2023.10.03"]
[Round "8"]
[White "familijatop71"]
[Black "maurovargas01"]
[Result "1-0"]
[WhiteElo "2166"]
[BlackElo "1911"]
[TimeControl "180+1"]
[EndTime "15:23:33 PDT"]
[Termination "familijatop71 won by checkmate"]

1. e4 {[%clk 0:03:00.9]} 1... c5 {[%clk 0:02:58.5]} 2. Nf3 {[%clk 0:03:00.3]}
2... d6 {[%clk 0:02:52.6]} 3. d4 {[%clk 0:02:59.8]} 3... cxd4 {[%clk 0:02:52.4]}
4. Nxd4 {[%clk 0:03:00.1]} 4... g6 {[%clk 0:02:52.8]} 5. c4 {[%clk 0:02:56.7]}
5... Nf6 {[%clk 0:02:51.7]} 6. Nc3 {[%clk 0:02:56.9]} 6... Bg7 {[%clk
0:02:51.9]} 7. f3 {[%clk 0:02:55.3]} 7... Nc6 {[%clk 0:02:46.5]} 8. Be3 {[%clk
0:02:54.9]} 8... e6 {[%clk 0:02:41.1]} 9. Ndb5 {[%clk 0:02:37.3]} 9... d5 {[%clk
0:02:31]} 10. cxd5 {[%clk 0:02:32.8]} 10... exd5 {[%clk 0:02:30.4]} 11. exd5
{[%clk 0:02:13.1]} 11... Qe7 {[%clk 0:02:19.4]} 12. Qe2 {[%clk 0:01:57.3]} 12...
Nb4 {[%clk 0:02:11.1]} 13. d6 {[%clk 0:01:53.4]} 13... Nc2+ {[%clk 0:01:54.9]}
14. Kf2 {[%clk 0:01:09.2]} 14... Qxe3+ {[%clk 0:01:53.9]} 15. Qxe3+ {[%clk
0:01:07.8]} 15... Nxe3 {[%clk 0:01:53.6]} 16. Nc7+ {[%clk 0:00:45.6]} 16... Kd7
{[%clk 0:01:49.4]} 17. Nxa8 {[%clk 0:00:41.9]} 17... Nc2 {[%clk 0:01:22.3]} 18.
Bb5+ {[%clk 0:00:39.6]} 18... Kxd6 {[%clk 0:01:17.8]} 19. Rad1+ {[%clk
0:00:38.4]} 19... Ke7 {[%clk 0:01:14.2]} 20. Rd2 {[%clk 0:00:34]} 20... Nb4
{[%clk 0:00:58.5]} 21. Re1+ {[%clk 0:00:24.6]} 21... Kf8 {[%clk 0:00:56.9]} 22.
Rd8+ {[%clk 0:00:21.8]} 22... Ne8 {[%clk 0:00:23]} 23. Rdxe8# {[%clk 0:00:20.5]}
1-0

[Event "Late-Titled-Tuesday-Blitz-October-03-2023"]
[Site "Chess.com"]
[Date "2023.10.03"]
[Round "8"]
[White "Malev212"]
[Black "vladislavkovalev"]
[Result "0-1"]
[WhiteElo "2654"]
[BlackElo "2886"]
[TimeControl "180+1"]
[EndTime "15:23:37 PDT"]
[Termination "vladislavkovalev won on time"]

1. e4 {[%clk 0:02:53.7]} 1... e5 {[%clk 0:02:59.7]} 2. Nf3 {[%clk 0:02:52.8]}
2... Nc6 {[%clk 0:03:00.2]} 3. Bb5 {[%clk 0:02:52.7]} 3... a6 {[%clk 0:03:00.4]}
4. Ba4 {[%clk 0:02:51.9]} 4... Nf6 {[%clk 0:03:00.9]} 5. O-O {[%clk 0:02:51.8]}
5... Be7 {[%clk 0:03:01.5]} 6. Re1 {[%clk 0:02:51.7]} 6... b5 {[%clk 0:03:02.2]}
7. Bb3 {[%clk 0:02:51.4]} 7... d6 {[%clk 0:03:02.9]} 8. c3 {[%clk 0:02:50.7]}
8... O-O {[%clk 0:03:03.6]} 9. h3 {[%clk 0:02:50.8]} 9... Be6 {[%clk 0:03:03.6]}
10. d4 {[%clk 0:02:49.7]} 10... Bxb3 {[%clk 0:03:03.4]} 11. axb3 {[%clk
0:02:49.8]} 11... exd4 {[%clk 0:03:03.2]} 12. cxd4 {[%clk 0:02:49.9]} 12... Nb4
{[%clk 0:03:03.8]} 13. d5 {[%clk 0:02:41.8]} 13... Nd7 {[%clk 0:02:45]} 14. Nc3
{[%clk 0:02:13.3]} 14... Bf6 {[%clk 0:02:41.8]} 15. Be3 {[%clk 0:02:05.7]} 15...
Re8 {[%clk 0:02:39.7]} 16. Qd2 {[%clk 0:01:50.3]} 16... g6 {[%clk 0:02:18.5]}
17. Rad1 {[%clk 0:01:10]} 17... a5 {[%clk 0:02:15.8]} 18. Nd4 {[%clk 0:00:51.8]}
18... Nc5 {[%clk 0:02:11.3]} 19. Ndxb5 {[%clk 0:00:40.9]} 19... Nxe4 {[%clk
0:02:05.3]} 20. Nxe4 {[%clk 0:00:32.7]} 20... Rxe4 {[%clk 0:02:06.2]} 21. Bh6
{[%clk 0:00:32]} 21... Rh4 {[%clk 0:01:52.6]} 22. Bf4 {[%clk 0:00:21.8]} 22...
Qd7 {[%clk 0:01:44.6]} 23. Nc3 {[%clk 0:00:20.2]} 23... Rh5 {[%clk 0:01:36.1]}
24. Qe2 {[%clk 0:00:12.7]} 24... Rf5 {[%clk 0:01:25.7]} 25. Bg3 {[%clk
0:00:06.7]} 25... h5 {[%clk 0:01:24.4]} 26. Qc4 {[%clk 0:00:04.5]} 26... Na6
{[%clk 0:00:55.5]} 27. h4 {[%clk 0:00:03.3]} 27... Nc5 {[%clk 0:00:55.3]} 28.
Ne4 {[%clk 0:00:02.7]} 28... Nxe4 {[%clk 0:00:54.9]} 29. Rxe4 {[%clk 0:00:03.6]}
29... Rb8 {[%clk 0:00:53.7]} 30. Rde1 {[%clk 0:00:02.4]} 30... Kg7 {[%clk
0:00:52.5]} 0-1

[Event "Late-Titled-Tuesday-Blitz-October-03-2023"]
[Site "Chess.com"]
[Date "2023.10.03"]
[Round "8"]
[White "UK_23"]
[Black "Dacean99"]
[Result "0-1"]
[WhiteElo "2398"]
[BlackElo "2538"]
[TimeControl "180+1"]
[EndTime "15:23:38 PDT"]
[Termination "Dacean99 won by resignation"]

1. e4 {[%clk 0:03:00.9]} 1... d6 {[%clk 0:02:59]} 2. d4 {[%clk 0:03:00.7]} 2...
Nf6 {[%clk 0:02:58.8]} 3. Nc3 {[%clk 0:03:00.9]} 3... g6 {[%clk 0:02:58.4]} 4.
Nf3 {[%clk 0:03:00.2]} 4... Bg7 {[%clk 0:02:57.2]} 5. Be2 {[%clk 0:03:00.8]}
5... O-O {[%clk 0:02:57.2]} 6. O-O {[%clk 0:03:01.6]} 6... a6 {[%clk 0:02:55.9]}
7. a4 {[%clk 0:03:01.6]} 7... Nc6 {[%clk 0:02:54.8]} 8. Re1 {[%clk 0:03:01.9]}
8... e5 {[%clk 0:02:53.4]} 9. dxe5 {[%clk 0:03:01.2]} 9... dxe5 {[%clk
0:02:53.2]} 10. Bg5 {[%clk 0:03:01]} 10... Be6 {[%clk 0:02:48.6]} 11. a5 {[%clk
0:02:58.4]} 11... h6 {[%clk 0:02:45.3]} 12. Bh4 {[%clk 0:02:58.2]} 12... Qe7
{[%clk 0:02:35.6]} 13. Qc1 {[%clk 0:02:57.3]} 13... Rad8 {[%clk 0:02:28.9]} 14.
Rd1 {[%clk 0:02:46.1]} 14... g5 {[%clk 0:02:26.7]} 15. Bg3 {[%clk 0:02:45.8]}
15... Qc5 {[%clk 0:02:27]} 16. Qe3 {[%clk 0:02:28.3]} 16... Qxe3 {[%clk
0:02:24.3]} 17. fxe3 {[%clk 0:02:29.2]} 17... Ng4 {[%clk 0:02:22.2]} 18. Bf2
{[%clk 0:02:18.9]} 18... f5 {[%clk 0:02:15.3]} 19. exf5 {[%clk 0:02:16.9]} 19...
Bxf5 {[%clk 0:02:10.1]} 20. Bc4+ {[%clk 0:02:14.4]} 20... Kh7 {[%clk 0:02:07.7]}
21. e4 {[%clk 0:02:09.7]} 21... Nxf2 {[%clk 0:02:06.8]} 22. Rxd8 {[%clk
0:02:03.3]} 22... Rxd8 {[%clk 0:01:54.9]} 23. exf5 {[%clk 0:02:03.2]} 23... Ng4
{[%clk 0:01:54.6]} 24. Ne4 {[%clk 0:01:59.8]} 24... Nd4 {[%clk 0:01:53.8]} 25.
Nxd4 {[%clk 0:01:56.4]} 25... Rxd4 {[%clk 0:01:54.7]} 26. Bd3 {[%clk 0:01:56.9]}
26... Nf6 {[%clk 0:01:53]} 27. Nxf6+ {[%clk 0:01:51.3]} 27... Bxf6 {[%clk
0:01:53.9]} 28. Re1 {[%clk 0:01:51.6]} 28... c5 {[%clk 0:01:51.5]} 29. Re4
{[%clk 0:01:51.4]} 29... Rd6 {[%clk 0:01:40.3]} 30. b3 {[%clk 0:01:44.1]} 30...
Kg7 {[%clk 0:01:39.5]} 31. Kf1 {[%clk 0:01:44]} 31... Kf7 {[%clk 0:01:38.8]} 32.
Ke2 {[%clk 0:01:44.6]} 32... Ke7 {[%clk 0:01:37.9]} 33. Bc4 {[%clk 0:01:43.9]}
33... h5 {[%clk 0:01:33.3]} 34. Re3 {[%clk 0:01:39.3]} 34... g4 {[%clk
0:01:30.4]} 35. Rd3 {[%clk 0:01:37.8]} 35... e4 {[%clk 0:01:21.2]} 36. Rxd6
{[%clk 0:01:33.6]} 36... Kxd6 {[%clk 0:01:22.1]} 37. Be6 {[%clk 0:01:33.7]}
37... Bc3 {[%clk 0:01:19.2]} 38. Bc8 {[%clk 0:01:32.8]} 38... Kc7 {[%clk
0:01:18]} 39. Be6 {[%clk 0:01:30.6]} 39... Bxa5 {[%clk 0:01:14]} 40. Ke3 {[%clk
0:01:31]} 40... Kd6 {[%clk 0:01:13.3]} 41. Kxe4 {[%clk 0:01:30.8]} 41... Bc3
{[%clk 0:01:12.4]} 42. Bc8 {[%clk 0:01:31.1]} 42... Kc7 {[%clk 0:01:11.3]} 43.
Be6 {[%clk 0:01:31.4]} 43... a5 {[%clk 0:01:10.7]} 44. Kf4 {[%clk 0:01:26.6]}
44... Kd6 {[%clk 0:00:54.4]} 45. Kg5 {[%clk 0:01:22.2]} 45... Be5 {[%clk
0:00:50.1]} 46. g3 {[%clk 0:01:21.2]} 46... b5 {[%clk 0:00:43.6]} 47. Kxh5
{[%clk 0:01:21.3]} 47... c4 {[%clk 0:00:43.9]} 48. Kxg4 {[%clk 0:01:15.6]} 48...
Kc5 {[%clk 0:00:43.2]} 49. Kg5 {[%clk 0:01:11.4]} 49... a4 {[%clk 0:00:43.1]}
50. bxa4 {[%clk 0:01:06.5]} 50... bxa4 {[%clk 0:00:44]} 51. f6 {[%clk
0:01:02.5]} 51... a3 {[%clk 0:00:42.8]} 52. f7 {[%clk 0:00:58.9]} 52... Bd6
{[%clk 0:00:42.6]} 0-1

[Event "Late-Titled-Tuesday-Blitz-October-03-2023"]
[Site "Chess.com"]
[Date "2023.10.03"]
[Round "8"]
[White "dennisodessa"]
[Black "luizzy"]
[Result "1-0"]
[WhiteElo "2482"]
[BlackElo "2589"]
[TimeControl "180+1"]
[EndTime "15:23:44 PDT"]
[Termination "dennisodessa won on time"]

1. d4 {[%clk 0:03:00]} 1... Nf6 {[%clk 0:02:59.8]} 2. c4 {[%clk 0:03:00.5]} 2...
g6 {[%clk 0:02:59.9]} 3. Nc3 {[%clk 0:03:01]} 3... d5 {[%clk 0:03:00.5]} 4. Bg5
{[%clk 0:03:00.8]} 4... Ne4 {[%clk 0:02:59.4]} 5. Nxe4 {[%clk 0:03:00.9]} 5...
dxe4 {[%clk 0:02:59.8]} 6. Qd2 {[%clk 0:03:01.8]} 6... h6 {[%clk 0:02:58.5]} 7.
Bh4 {[%clk 0:03:00.9]} 7... Bg7 {[%clk 0:02:56.3]} 8. e3 {[%clk 0:03:01]} 8...
c5 {[%clk 0:02:54.3]} 9. d5 {[%clk 0:03:01]} 9... Nd7 {[%clk 0:02:47.3]} 10. Ne2
{[%clk 0:03:01.2]} 10... Ne5 {[%clk 0:02:46.7]} 11. Nc3 {[%clk 0:03:01.5]} 11...
Bf5 {[%clk 0:02:40.7]} 12. Be2 {[%clk 0:03:02.1]} 12... Qb6 {[%clk 0:02:34.2]}
13. O-O {[%clk 0:02:59.6]} 13... g5 {[%clk 0:02:24.5]} 14. Bg3 {[%clk
0:02:58.8]} 14... O-O {[%clk 0:02:23.9]} 15. Qc2 {[%clk 0:02:57.7]} 15... Nd3
{[%clk 0:02:10.4]} 16. Rab1 {[%clk 0:02:47.2]} 16... Qg6 {[%clk 0:01:37.3]} 17.
a3 {[%clk 0:02:41.7]} 17... e6 {[%clk 0:01:22.2]} 18. Rbd1 {[%clk 0:02:40.9]}
18... exd5 {[%clk 0:01:18.3]} 19. cxd5 {[%clk 0:02:37.4]} 19... Rad8 {[%clk
0:01:14.3]} 20. f3 {[%clk 0:02:32.8]} 20... Bxc3 {[%clk 0:00:52.8]} 21. Qxc3
{[%clk 0:02:21.7]} 21... Rxd5 {[%clk 0:00:51.4]} 22. Bxd3 {[%clk 0:02:21.1]}
22... Rxd3 {[%clk 0:00:49.4]} 23. Rxd3 {[%clk 0:02:20]} 23... exd3 {[%clk
0:00:50.3]} 24. e4 {[%clk 0:02:20.7]} 24... Be6 {[%clk 0:00:36.2]} 25. Qxd3
{[%clk 0:02:20.4]} 25... Rc8 {[%clk 0:00:32]} 26. Be5 {[%clk 0:02:09.7]} 26...
f6 {[%clk 0:00:23.6]} 27. Bc3 {[%clk 0:02:08.5]} 27... Qf7 {[%clk 0:00:22.6]}
28. Rd1 {[%clk 0:02:05.3]} 28... Kh7 {[%clk 0:00:15.4]} 29. Qd6 {[%clk
0:01:56.8]} 29... Rc6 {[%clk 0:00:13.1]} 30. Qd8 {[%clk 0:01:56.4]} 30... Kg7
{[%clk 0:00:12.2]} 31. Qb8 {[%clk 0:01:48.7]} 31... a6 {[%clk 0:00:02.8]} 32.
Rd8 {[%clk 0:01:46.3]} 32... b5 {[%clk 0:00:02.1]} 33. f4 {[%clk 0:01:19.3]}
33... Qe7 {[%clk 0:00:02]} 34. Rh8 {[%clk 0:01:05.9]} 34... Bf7 {[%clk
0:00:01.9]} 35. e5 {[%clk 0:01:03.4]} 1-0

[Event "Late-Titled-Tuesday-Blitz-October-03-2023"]
[Site "Chess.com"]
[Date "2023.10.03"]
[Round "8"]
[White "SanchezKelvin"]
[Black "dretch"]
[Result "0-1"]
[WhiteElo "2585"]
[BlackElo "2847"]
[TimeControl "180+1"]
[EndTime "15:23:49 PDT"]
[Termination "dretch won by resignation"]

1. e4 {[%clk 0:03:00.9]} 1... e6 {[%clk 0:03:00.3]} 2. d4 {[%clk 0:03:00.3]}
2... d5 {[%clk 0:03:00.7]} 3. Nd2 {[%clk 0:03:00.5]} 3... c5 {[%clk 0:03:00.5]}
4. exd5 {[%clk 0:03:00.1]} 4... Qxd5 {[%clk 0:03:00.5]} 5. Ngf3 {[%clk
0:03:00.5]} 5... cxd4 {[%clk 0:03:00.9]} 6. Bc4 {[%clk 0:03:00.9]} 6... Qd6
{[%clk 0:03:01.4]} 7. O-O {[%clk 0:03:01.1]} 7... Nf6 {[%clk 0:03:02]} 8. Nb3
{[%clk 0:03:01.3]} 8... Nc6 {[%clk 0:03:02.5]} 9. Nbxd4 {[%clk 0:03:01.6]} 9...
Nxd4 {[%clk 0:03:02.9]} 10. Qxd4 {[%clk 0:03:01.5]} 10... Qxd4 {[%clk
0:03:00.6]} 11. Nxd4 {[%clk 0:03:02.4]} 11... Bd7 {[%clk 0:03:01.1]} 12. c3
{[%clk 0:03:01.6]} 12... Rc8 {[%clk 0:02:59.8]} 13. Be2 {[%clk 0:02:57.8]} 13...
Bc5 {[%clk 0:02:56]} 14. Nb3 {[%clk 0:02:56.6]} 14... Bb6 {[%clk 0:02:53]} 15.
a4 {[%clk 0:02:54.4]} 15... a5 {[%clk 0:02:42.4]} 16. Bf4 {[%clk 0:02:40.3]}
16... O-O {[%clk 0:02:29.4]} 17. Be5 {[%clk 0:02:30.3]} 17... Rfd8 {[%clk
0:02:10.4]} 18. Nd4 {[%clk 0:02:14.1]} 18... Rc5 {[%clk 0:01:56.9]} 19. Bg3
{[%clk 0:02:00.1]} 19... Ne4 {[%clk 0:01:53.6]} 20. Rfd1 {[%clk 0:01:49.1]}
20... Nxg3 {[%clk 0:01:47.5]} 21. hxg3 {[%clk 0:01:49]} 21... Kf8 {[%clk
0:01:41.5]} 22. Kf1 {[%clk 0:01:45.1]} 22... Ke7 {[%clk 0:01:37.6]} 23. Nb5
{[%clk 0:01:42.3]} 23... Rf5 {[%clk 0:01:35.1]} 24. Bf3 {[%clk 0:01:39.6]} 24...
g5 {[%clk 0:01:24.9]} 25. Nd4 {[%clk 0:01:33.5]} 25... Rf6 {[%clk 0:01:21.4]}
26. Bxb7 {[%clk 0:01:23.4]} 26... e5 {[%clk 0:01:19.8]} 27. Re1 {[%clk
0:01:22.8]} 27... Kd6 {[%clk 0:01:08.4]} 28. Nf3 {[%clk 0:00:57.4]} 28... g4
{[%clk 0:01:07.5]} 29. Nxe5 {[%clk 0:00:32.8]} 29... Rxf2+ {[%clk 0:01:05.9]}
30. Kg1 {[%clk 0:00:33.3]} 30... Re2+ {[%clk 0:01:00.4]} 31. Kf1 {[%clk
0:00:31.3]} 31... Rxe5 {[%clk 0:00:54]} 32. Rad1+ {[%clk 0:00:30.8]} 32... Ke6
{[%clk 0:00:54.3]} 33. Bd5+ {[%clk 0:00:13.1]} 33... Kf6 {[%clk 0:00:54.2]} 34.
Rxe5 {[%clk 0:00:11.2]} 34... Kxe5 {[%clk 0:00:53.7]} 35. Bxf7 {[%clk
0:00:10.3]} 35... Bb5+ {[%clk 0:00:52.7]} 36. Ke1 {[%clk 0:00:10.3]} 36... Rxd1+
{[%clk 0:00:50.2]} 37. Kxd1 {[%clk 0:00:10.4]} 37... Bxa4+ {[%clk 0:00:50.5]}
38. b3 {[%clk 0:00:10.9]} 38... Bc6 {[%clk 0:00:49.9]} 39. Bh5 {[%clk
0:00:09.7]} 39... Kf5 {[%clk 0:00:48.6]} 0-1

[Event "Late-Titled-Tuesday-Blitz-October-03-2023"]
[Site "Chess.com"]
[Date "2023.10.03"]
[Round "8"]
[White "Langua_Chess"]
[Black "davigator"]
[Result "0-1"]
[WhiteElo "2469"]
[BlackElo "2328"]
[TimeControl "180+1"]
[EndTime "15:23:50 PDT"]
[Termination "davigator won on time"]

1. e4 {[%clk 0:03:00.9]} 1... c5 {[%clk 0:02:59.1]} 2. Nf3 {[%clk 0:02:59.8]}
2... Nc6 {[%clk 0:02:59.3]} 3. d4 {[%clk 0:02:54.7]} 3... cxd4 {[%clk
0:02:59.3]} 4. Nxd4 {[%clk 0:02:55.6]} 4... Nf6 {[%clk 0:02:59.3]} 5. Nc3 {[%clk
0:02:54.5]} 5... d6 {[%clk 0:02:59.4]} 6. Bg5 {[%clk 0:02:49.4]} 6... a6 {[%clk
0:02:58.7]} 7. Bc4 {[%clk 0:02:41]} 7... e6 {[%clk 0:02:48.6]} 8. O-O {[%clk
0:02:34]} 8... Be7 {[%clk 0:02:47.1]} 9. Nxc6 {[%clk 0:02:17.8]} 9... bxc6
{[%clk 0:02:46.5]} 10. e5 {[%clk 0:02:18.7]} 10... dxe5 {[%clk 0:02:43.8]} 11.
Qe2 {[%clk 0:02:17.3]} 11... Qc7 {[%clk 0:02:42.7]} 12. Rfe1 {[%clk 0:02:10.4]}
12... O-O {[%clk 0:02:42.2]} 13. Qxe5 {[%clk 0:01:59.9]} 13... Bd6 {[%clk
0:02:34]} 14. Qe2 {[%clk 0:02:00.1]} 14... Bxh2+ {[%clk 0:02:33]} 15. Kh1 {[%clk
0:02:00.8]} 15... Bf4 {[%clk 0:02:32]} 16. Bxf6 {[%clk 0:01:44.3]} 16... gxf6
{[%clk 0:02:31.8]} 17. Qh5 {[%clk 0:01:45.2]} 17... f5 {[%clk 0:02:30.2]} 18. g3
{[%clk 0:01:36.2]} 18... Be5 {[%clk 0:02:29.1]} 19. Kg2 {[%clk 0:01:34.1]} 19...
Bg7 {[%clk 0:02:27.6]} 20. Rh1 {[%clk 0:01:08.1]} 20... h6 {[%clk 0:02:26.6]}
21. Ne2 {[%clk 0:01:08.8]} 21... c5 {[%clk 0:02:25.6]} 22. Nf4 {[%clk
0:00:54.4]} 22... Qb7+ {[%clk 0:02:23]} 23. f3 {[%clk 0:00:46.2]} 23... Qxb2
{[%clk 0:02:22.5]} 24. Raf1 {[%clk 0:00:35]} 24... Qxc2+ {[%clk 0:02:20.4]} 25.
Be2 {[%clk 0:00:35.5]} 25... e5 {[%clk 0:02:07.1]} 26. Rc1 {[%clk 0:00:21.6]}
26... Qxa2 {[%clk 0:02:04.4]} 27. Ra1 {[%clk 0:00:19.7]} 27... Qd2 {[%clk
0:01:49.9]} 28. Rhd1 {[%clk 0:00:19.8]} 28... Qb2 {[%clk 0:01:44.8]} 29. Rab1
{[%clk 0:00:11.2]} 29... Qa3 {[%clk 0:01:42.4]} 30. Nd5 {[%clk 0:00:10.6]} 30...
Be6 {[%clk 0:01:42.2]} 31. Ne7+ {[%clk 0:00:07.9]} 31... Kh8 {[%clk 0:01:41.9]}
32. Nxf5 {[%clk 0:00:08.8]} 32... Qa2 {[%clk 0:01:37.3]} 33. Re1 {[%clk
0:00:03.2]} 33... Qc2 {[%clk 0:01:35.2]} 34. Nxg7 {[%clk 0:00:03.3]} 34... Kxg7
{[%clk 0:01:34.2]} 35. Rbc1 {[%clk 0:00:03.5]} 35... Qf5 {[%clk 0:01:31.6]} 36.
Qh4 {[%clk 0:00:02.5]} 36... Rfc8 {[%clk 0:01:27]} 37. Rh1 {[%clk 0:00:02.5]}
37... Qg5 {[%clk 0:01:26.2]} 38. Qh2 {[%clk 0:00:02.5]} 38... c4 {[%clk
0:01:26.2]} 39. Kf2 {[%clk 0:00:02.2]} 39... Rab8 {[%clk 0:01:23.5]} 40. f4
{[%clk 0:00:02.9]} 40... Qf6 {[%clk 0:01:20.8]} 41. Bf3 {[%clk 0:00:02.7]} 41...
Rb2+ {[%clk 0:01:18.7]} 42. Be2 {[%clk 0:00:03]} 42... exf4 {[%clk 0:01:18.6]}
43. gxf4 {[%clk 0:00:02.8]} 43... Bg4 {[%clk 0:01:16.6]} 44. Rce1 {[%clk
0:00:01.8]} 44... Re8 {[%clk 0:01:15.4]} 45. Rhg1 {[%clk 0:00:01.7]} 45...
Rbxe2+ {[%clk 0:01:14.5]} 46. Rxe2 {[%clk 0:00:02.2]} 46... Rxe2+ {[%clk
0:01:14.5]} 47. Kg3 {[%clk 0:00:02.8]} 47... Rxh2 {[%clk 0:01:14.5]} 0-1